[Event "Titled Tuesday Blitz January 25 2022"]
[White "Costachi, Mihnea"]
[Black "Mitusov, Semen"]
[WhiteFideId "1217518"]
[BlackFideId "14151049"]
[WhiteElo "2464"]
[BlackElo "2246"]
[Result "1-0"]
[Round "09"]
[TimeControl "180+1"]
[Date "2022.01.26"]
[WhiteClock "0:01:39"]
[BlackClock "0:01:24"]

1. e4 {[%clk 0:03:00]}  e5 {[%clk 0:02:59]} 2. Nf3 {[%clk 0:02:59]}  Nc6 {[%clk 0:02:59]} 3. Bc4 {[%clk 0:02:59]}  Bc5 {[%clk 0:02:58]} 4. Nc3 {[%clk 0:02:58]}  Nf6 {[%clk 0:02:58]} 5. d3 {[%clk 0:02:58]}  h6 {[%clk 0:02:57]} 6. a3 {[%clk 0:02:57]}  d6 {[%clk 0:02:57]} 7. h3 {[%clk 0:02:57]}  a6 {[%clk 0:02:57]} 8. Be3 {[%clk 0:02:57]}  Ba7 {[%clk 0:02:50]} 9. d4 {[%clk 0:02:56]}  exd4 {[%clk 0:02:44]} 10. Nxd4 {[%clk 0:02:55]}  Nxd4 {[%clk 0:02:44]} 11. Bxd4 {[%clk 0:02:54]}  Bxd4 {[%clk 0:02:45]} 12. Qxd4 {[%clk 0:02:53]}  O-O {[%clk 0:02:45]} 13. O-O-O {[%clk 0:02:52]}  Be6 {[%clk 0:02:45]} 14. e5 {[%clk 0:02:48]}  Ne8 {[%clk 0:02:35]} 15. Rhe1 {[%clk 0:02:39]}  Bxc4 {[%clk 0:02:27]} 16. Qxc4 {[%clk 0:02:40]}  Qg5+ {[%clk 0:02:20]} 17. f4 {[%clk 0:02:30]}  Qxg2 {[%clk 0:02:18]} 18. Nd5 {[%clk 0:02:30]}  dxe5 {[%clk 0:02:09]} 19. fxe5 {[%clk 0:02:22]}  Qxh3 {[%clk 0:02:09]} 20. e6 {[%clk 0:02:10]}  fxe6 {[%clk 0:02:05]} 21. Ne7+ {[%clk 0:02:09]}  Kh7 {[%clk 0:01:56]} 22. Qe4+ {[%clk 0:01:49]}  Rf5 {[%clk 0:01:54]} 23. Nxf5 {[%clk 0:01:43]}  exf5 {[%clk 0:01:46]} 24. Qxb7 {[%clk 0:01:42]}  Nd6 {[%clk 0:01:26]} 25. Qxa8 {[%clk 0:01:41]}  f4 {[%clk 0:01:27]} 26. Rxd6 {[%clk 0:01:39]}  cxd6 {[%clk 0:01:27]} 27. Qe4+ {[%clk 0:01:39]}  Kg8 {[%clk 0:01:24]} 28. Qg6 {[%clk 0:01:39]} 1-0


[Site "https://www.chess.com"]

[Event "Titled Tuesday Blitz January 25 2022"]
[White "Demchenko, Anton"]
[Black "Szpar, Milosz"]
[WhiteFideId "4160258"]
[BlackFideId "1184989"]
[WhiteElo "2539"]
[BlackElo "2447"]
[Result "0-1"]
[Round "09"]
[TimeControl "180+1"]
[Date "2022.01.26"]
[WhiteClock "0:00:02"]
[BlackClock "0:00:04"]

1. e4 {[%clk 0:03:00]}  c5 {[%clk 0:03:00]} 2. Nf3 {[%clk 0:03:00]}  d6 {[%clk 0:03:01]} 3. d4 {[%clk 0:03:01]}  cxd4 {[%clk 0:03:02]} 4. Qxd4 {[%clk 0:03:02]}  Nf6 {[%clk 0:03:02]} 5. Nc3 {[%clk 0:03:02]}  Bd7 {[%clk 0:03:03]} 6. h3 {[%clk 0:03:01]}  Nc6 {[%clk 0:03:03]} 7. Qe3 {[%clk 0:03:01]}  e6 {[%clk 0:03:04]} 8. Be2 {[%clk 0:02:51]}  Be7 {[%clk 0:03:04]} 9. O-O {[%clk 0:02:51]}  O-O {[%clk 0:03:05]} 10. Rd1 {[%clk 0:02:52]}  a6 {[%clk 0:03:05]} 11. b3 {[%clk 0:02:45]}  b5 {[%clk 0:03:05]} 12. Bb2 {[%clk 0:02:45]}  Qc7 {[%clk 0:03:03]} 13. a3 {[%clk 0:02:29]}  Rfd8 {[%clk 0:03:03]} 14. Rac1 {[%clk 0:02:27]}  Rac8 {[%clk 0:03:03]} 15. Bf1 {[%clk 0:02:23]}  Qb7 {[%clk 0:03:02]} 16. Ne2 {[%clk 0:02:13]}  b4 {[%clk 0:02:50]} 17. Ng3 {[%clk 0:02:04]}  a5 {[%clk 0:02:30]} 18. axb4 {[%clk 0:02:02]}  Nxb4 {[%clk 0:02:30]} 19. Rd2 {[%clk 0:01:53]}  a4 {[%clk 0:02:14]} 20. e5 {[%clk 0:00:57]}  Nfd5 {[%clk 0:02:03]} 21. Qe4 {[%clk 0:00:57]}  Bc6 {[%clk 0:01:30]} 22. Qg4 {[%clk 0:00:54]}  dxe5 {[%clk 0:01:27]} 23. Nxe5 {[%clk 0:00:54]}  Nf6 {[%clk 0:01:22]} 24. Qd1 {[%clk 0:00:51]}  Rxd2 {[%clk 0:01:07]} 25. Qxd2 {[%clk 0:00:52]}  Be8 {[%clk 0:01:08]} 26. Bc4 {[%clk 0:00:33]}  Rd8 {[%clk 0:00:51]} 27. Qe2 {[%clk 0:00:33]}  Ra8 {[%clk 0:00:37]} 28. Ra1 {[%clk 0:00:33]}  axb3 {[%clk 0:00:35]} 29. cxb3 {[%clk 0:00:30]}  Rxa1+ {[%clk 0:00:32]} 30. Bxa1 {[%clk 0:00:31]}  Nbd5 {[%clk 0:00:30]} 31. Qf3 {[%clk 0:00:28]}  Qa7 {[%clk 0:00:29]} 32. Qd1 {[%clk 0:00:26]}  Bc5 {[%clk 0:00:28]} 33. Nd3 {[%clk 0:00:26]}  Bb6 {[%clk 0:00:28]} 34. Bb2 {[%clk 0:00:17]}  Bd4 {[%clk 0:00:22]} 35. Qe2 {[%clk 0:00:15]}  Bc6 {[%clk 0:00:19]} 36. Ne5 {[%clk 0:00:12]}  Nf4 {[%clk 0:00:19]} 37. Qd2 {[%clk 0:00:11]}  Bxb2 {[%clk 0:00:17]} 38. Nxc6 {[%clk 0:00:11]}  Qc7 {[%clk 0:00:12]} 39. Qxb2 {[%clk 0:00:06]}  Qxc6 {[%clk 0:00:12]} 40. f3 {[%clk 0:00:05]}  h5 {[%clk 0:00:12]} 41. Qd4 {[%clk 0:00:04]}  Ng6 {[%clk 0:00:08]} 42. Ne2 {[%clk 0:00:02]}  h4 {[%clk 0:00:07]} 43. Qe3 {[%clk 0:00:03]}  Qd6 {[%clk 0:00:07]} 44. Kf2 {[%clk 0:00:03]}  Qh2 {[%clk 0:00:04]} 45. Qd4 {[%clk 0:00:02]}  Nh5 {[%clk 0:00:04]} 46. Qd8+ {[%clk 0:00:02]}  Kh7 {[%clk 0:00:04]} 47. Qg5 {[%clk 0:00:02]}  Ng3 {[%clk 0:00:04]} 48. Nxg3 {[%clk 0:00:02]}  hxg3+ {[%clk 0:00:05]} 49. Ke3 {[%clk 0:00:02]}  Qxg2 {[%clk 0:00:04]} 50. Bxe6 {[%clk 0:00:01]}  Qf2+ {[%clk 0:00:04]} 51. Ke4 {[%clk 0:00:01]}  Qe2+ {[%clk 0:00:05]} 52. Kd5 {[%clk 0:00:01]}  Qxe6+ {[%clk 0:00:05]} 53. Kd4 {[%clk 0:00:02]}  Qe5+ {[%clk 0:00:04]} 0-1


[Site "https://www.chess.com"]

[Event "Titled Tuesday Blitz January 25 2022"]
[White "Dmitrenko, Viktor"]
[Black "Sumaneev, Dmitry"]
[WhiteFideId "14110270"]
[BlackFideId "4125312"]
[WhiteElo "2262"]
[BlackElo "2544"]
[Result "0-1"]
[Round "09"]
[TimeControl "180+1"]
[Date "2022.01.26"]
[WhiteClock "0:00:12"]
[BlackClock "0:01:02"]

1. e4 {[%clk 0:03:00]}  e6 {[%clk 0:02:59]} 2. d4 {[%clk 0:02:59]}  d5 {[%clk 0:03:00]} 3. e5 {[%clk 0:03:00]}  c5 {[%clk 0:02:59]} 4. c3 {[%clk 0:03:01]}  Nc6 {[%clk 0:03:00]} 5. Nf3 {[%clk 0:03:00]}  Qb6 {[%clk 0:03:00]} 6. a3 {[%clk 0:02:53]}  c4 {[%clk 0:03:01]} 7. h4 {[%clk 0:02:51]}  Na5 {[%clk 0:03:01]} 8. Nbd2 {[%clk 0:02:51]}  Bd7 {[%clk 0:03:01]} 9. Rb1 {[%clk 0:02:47]}  Ne7 {[%clk 0:02:54]} 10. h5 {[%clk 0:02:47]}  h6 {[%clk 0:02:54]} 11. g4 {[%clk 0:02:44]}  Nec6 {[%clk 0:02:53]} 12. b4 {[%clk 0:02:30]}  cxb3 {[%clk 0:02:52]} 13. Nxb3 {[%clk 0:02:30]}  Nxb3 {[%clk 0:02:52]} 14. Rxb3 {[%clk 0:02:28]}  Qc7 {[%clk 0:02:52]} 15. Bd2 {[%clk 0:02:17]}  Na5 {[%clk 0:02:51]} 16. Rb1 {[%clk 0:02:16]}  b6 {[%clk 0:02:45]} 17. Bd3 {[%clk 0:02:13]}  Bxa3 {[%clk 0:02:39]} 18. g5 {[%clk 0:02:09]}  Be7 {[%clk 0:02:34]} 19. g6 {[%clk 0:02:08]}  f5 {[%clk 0:02:31]} 20. exf6 {[%clk 0:02:04]}  Bxf6 {[%clk 0:02:30]} 21. Qe2 {[%clk 0:01:58]}  O-O {[%clk 0:02:21]} 22. Nh2 {[%clk 0:01:47]}  e5 {[%clk 0:02:18]} 23. Ng4 {[%clk 0:01:42]}  e4 {[%clk 0:02:08]} 24. Bb5 {[%clk 0:01:34]}  Bxg4 {[%clk 0:02:03]} 25. Qxg4 {[%clk 0:01:32]}  Qe7 {[%clk 0:01:59]} 26. Bd7 {[%clk 0:00:56]}  Rad8 {[%clk 0:01:50]} 27. Be6+ {[%clk 0:00:48]}  Kh8 {[%clk 0:01:50]} 28. Rb5 {[%clk 0:00:48]}  Rd6 {[%clk 0:01:40]} 29. Bxd5 {[%clk 0:00:40]}  a6 {[%clk 0:01:35]} 30. Rxa5 {[%clk 0:00:39]}  bxa5 {[%clk 0:01:36]} 31. Bxe4 {[%clk 0:00:35]}  a4 {[%clk 0:01:27]} 32. O-O {[%clk 0:00:32]}  a3 {[%clk 0:01:17]} 33. Ra1 {[%clk 0:00:27]}  Rb6 {[%clk 0:01:17]} 34. Bc1 {[%clk 0:00:24]}  Rb3 {[%clk 0:01:15]} 35. Bd5 {[%clk 0:00:19]}  Rxc3 {[%clk 0:01:13]} 36. Qe6 {[%clk 0:00:16]}  Qc7 {[%clk 0:01:07]} 37. Bxa3 {[%clk 0:00:12]}  Rxa3 {[%clk 0:01:04]} 38. Rxa3 {[%clk 0:00:11]}  Qc1+ {[%clk 0:01:04]} 39. Kg2 {[%clk 0:00:12]}  Qxa3 {[%clk 0:01:02]} 0-1


[Site "https://www.chess.com"]

[Event "Titled Tuesday Blitz January 25 2022"]
[White "Efimenko, Zahar"]
[Black "Carlsson, Ludvig"]
[WhiteFideId "14107201"]
[BlackFideId "1727010"]
[WhiteElo "2528"]
[BlackElo "2178"]
[Result "0-1"]
[Round "09"]
[TimeControl "180+1"]
[Date "2022.01.26"]
[WhiteClock "0:00:03"]
[BlackClock "0:00:25"]

1. e4 {[%clk 0:03:00]}  e5 {[%clk 0:02:59]} 2. Nf3 {[%clk 0:03:00]}  Nc6 {[%clk 0:02:59]} 3. Bb5 {[%clk 0:02:59]}  Nf6 {[%clk 0:02:59]} 4. d3 {[%clk 0:02:58]}  Bc5 {[%clk 0:02:59]} 5. Nbd2 {[%clk 0:02:55]}  O-O {[%clk 0:02:56]} 6. c3 {[%clk 0:02:49]}  d5 {[%clk 0:02:50]} 7. O-O {[%clk 0:02:38]}  dxe4 {[%clk 0:02:43]} 8. dxe4 {[%clk 0:02:37]}  Qe7 {[%clk 0:02:42]} 9. h3 {[%clk 0:02:28]}  a5 {[%clk 0:02:41]} 10. a4 {[%clk 0:02:20]}  Nb8 {[%clk 0:02:41]} 11. Bd3 {[%clk 0:02:07]}  Rd8 {[%clk 0:02:34]} 12. Qc2 {[%clk 0:01:53]}  Nh5 {[%clk 0:02:29]} 13. Nc4 {[%clk 0:01:52]}  Nc6 {[%clk 0:02:17]} 14. Ne3 {[%clk 0:01:37]}  Nf4 {[%clk 0:02:15]} 15. Nd5 {[%clk 0:01:36]}  Qd6 {[%clk 0:01:21]} 16. Bxf4 {[%clk 0:01:31]}  exf4 {[%clk 0:01:21]} 17. Rad1 {[%clk 0:01:30]}  Ne5 {[%clk 0:01:20]} 18. Be2 {[%clk 0:01:23]}  Nxf3+ {[%clk 0:01:15]} 19. Bxf3 {[%clk 0:01:22]}  Qe5 {[%clk 0:01:15]} 20. b4 {[%clk 0:00:57]}  axb4 {[%clk 0:00:57]} 21. cxb4 {[%clk 0:00:57]}  Bd6 {[%clk 0:00:57]} 22. b5 {[%clk 0:00:49]}  b6 {[%clk 0:00:53]} 23. Nb4 {[%clk 0:00:39]}  Bb7 {[%clk 0:00:51]} 24. Nd3 {[%clk 0:00:33]}  Qg5 {[%clk 0:00:48]} 25. Rfe1 {[%clk 0:00:19]}  Re8 {[%clk 0:00:48]} 26. Kh1 {[%clk 0:00:17]}  Re7 {[%clk 0:00:46]} 27. Re2 {[%clk 0:00:14]}  Rae8 {[%clk 0:00:46]} 28. Rde1 {[%clk 0:00:14]}  h6 {[%clk 0:00:46]} 29. Qc4 {[%clk 0:00:12]}  Bc8 {[%clk 0:00:42]} 30. Nb4 {[%clk 0:00:06]}  Be6 {[%clk 0:00:40]} 31. Qc3 {[%clk 0:00:07]}  Qh4 {[%clk 0:00:39]} 32. Nc6 {[%clk 0:00:06]}  Rd7 {[%clk 0:00:36]} 33. Rd2 {[%clk 0:00:05]}  Bxh3 {[%clk 0:00:32]} 34. gxh3 {[%clk 0:00:04]}  Qxh3+ {[%clk 0:00:33]} 35. Kg1 {[%clk 0:00:04]}  Bb4 {[%clk 0:00:34]} 36. Qxb4 {[%clk 0:00:04]}  Rxd2 {[%clk 0:00:34]} 37. Qxd2 {[%clk 0:00:03]}  Qxf3 {[%clk 0:00:34]} 38. Qe2 {[%clk 0:00:04]}  Qh3 {[%clk 0:00:29]} 39. f3 {[%clk 0:00:04]}  Re6 {[%clk 0:00:27]} 40. Qg2 {[%clk 0:00:04]}  Qh4 {[%clk 0:00:25]} 41. Rd1 {[%clk 0:00:03]}  Rg6 {[%clk 0:00:25]} 0-1


[Site "https://www.chess.com"]

[Event "Titled Tuesday Blitz January 25 2022"]
[White "Garcia Martin, Marta"]
[Black "Shipov, Sergei"]
[WhiteFideId "32084030"]
[BlackFideId "4113624"]
[WhiteElo "2102"]
[BlackElo "2775"]
[Result "1-0"]
[Round "09"]
[TimeControl "180+1"]
[Date "2022.01.26"]
[WhiteClock "0:00:02"]
[BlackClock "0:00:06"]

1. Nf3 {[%clk 0:03:00]}  d5 {[%clk 0:02:58]} 2. e3 {[%clk 0:02:59]}  Nf6 {[%clk 0:02:57]} 3. c4 {[%clk 0:02:59]}  e6 {[%clk 0:02:53]} 4. Nc3 {[%clk 0:02:59]}  c5 {[%clk 0:02:49]} 5. cxd5 {[%clk 0:02:51]}  Nxd5 {[%clk 0:02:48]} 6. Be2 {[%clk 0:02:47]}  Be7 {[%clk 0:02:47]} 7. O-O {[%clk 0:02:46]}  O-O {[%clk 0:02:45]} 8. a3 {[%clk 0:02:42]}  Nc6 {[%clk 0:02:44]} 9. Qc2 {[%clk 0:02:42]}  b6 {[%clk 0:02:40]} 10. Rd1 {[%clk 0:02:37]}  Bb7 {[%clk 0:02:39]} 11. b3 {[%clk 0:02:31]}  Rc8 {[%clk 0:02:36]} 12. Bb2 {[%clk 0:02:30]}  h6 {[%clk 0:02:32]} 13. Rac1 {[%clk 0:02:22]}  Bf6 {[%clk 0:02:19]} 14. Qb1 {[%clk 0:02:11]}  Nxc3 {[%clk 0:02:00]} 15. Bxc3 {[%clk 0:02:06]}  Bxc3 {[%clk 0:01:56]} 16. dxc3 {[%clk 0:02:07]}  Qe7 {[%clk 0:01:53]} 17. b4 {[%clk 0:02:04]}  Rfd8 {[%clk 0:01:52]} 18. Rxd8+ {[%clk 0:01:57]}  Rxd8 {[%clk 0:01:51]} 19. Rd1 {[%clk 0:01:57]}  Rxd1+ {[%clk 0:01:24]} 20. Qxd1 {[%clk 0:01:58]}  cxb4 {[%clk 0:01:11]} 21. cxb4 {[%clk 0:01:59]}  a5 {[%clk 0:01:11]} 22. b5 {[%clk 0:01:50]}  Nb8 {[%clk 0:01:06]} 23. Qd4 {[%clk 0:01:48]}  Nd7 {[%clk 0:01:04]} 24. Ne5 {[%clk 0:01:28]}  Qg5 {[%clk 0:00:52]} 25. Nc6 {[%clk 0:01:16]}  Nc5 {[%clk 0:00:26]} 26. Qd6 {[%clk 0:00:37]}  Kh7 {[%clk 0:00:17]} 27. h3 {[%clk 0:00:35]}  Qg6 {[%clk 0:00:14]} 28. Qc7 {[%clk 0:00:29]}  Qb1+ {[%clk 0:00:12]} 29. Kh2 {[%clk 0:00:28]}  Qb2 {[%clk 0:00:12]} 30. Qxb6 {[%clk 0:00:18]}  Qxe2 {[%clk 0:00:11]} 31. Qxc5 {[%clk 0:00:18]}  Qxf2 {[%clk 0:00:11]} 32. Qd4 {[%clk 0:00:15]}  f6 {[%clk 0:00:09]} 33. Qe4+ {[%clk 0:00:14]}  f5 {[%clk 0:00:09]} 34. Qxe6 {[%clk 0:00:13]}  a4 {[%clk 0:00:10]} 35. Qe7 {[%clk 0:00:10]}  Bc8 {[%clk 0:00:09]} 36. Nd4 {[%clk 0:00:08]}  f4 {[%clk 0:00:08]} 37. Qe4+ {[%clk 0:00:07]}  Kg8 {[%clk 0:00:08]} 38. Qxf4 {[%clk 0:00:07]}  Qxf4+ {[%clk 0:00:07]} 39. exf4 {[%clk 0:00:08]}  Kf7 {[%clk 0:00:07]} 40. Kg3 {[%clk 0:00:07]}  Ke7 {[%clk 0:00:07]} 41. Kf2 {[%clk 0:00:08]}  Kd6 {[%clk 0:00:08]} 42. Ke3 {[%clk 0:00:08]}  Kc5 {[%clk 0:00:08]} 43. Kd3 {[%clk 0:00:08]}  Bb7 {[%clk 0:00:07]} 44. g4 {[%clk 0:00:08]}  Bg2 {[%clk 0:00:05]} 45. h4 {[%clk 0:00:08]}  Bh3 {[%clk 0:00:06]} 46. g5 {[%clk 0:00:09]}  hxg5 {[%clk 0:00:06]} 47. hxg5 {[%clk 0:00:09]}  g6 {[%clk 0:00:07]} 48. Kc3 {[%clk 0:00:08]}  Bd7 {[%clk 0:00:06]} 49. Kd3 {[%clk 0:00:07]}  Be8 {[%clk 0:00:07]} 50. Ke4 {[%clk 0:00:06]}  Bd7 {[%clk 0:00:07]} 51. Ke5 {[%clk 0:00:06]}  Bg4 {[%clk 0:00:07]} 52. f5 {[%clk 0:00:04]}  gxf5 {[%clk 0:00:06]} 53. g6 {[%clk 0:00:04]}  Bh5 {[%clk 0:00:06]} 54. g7 {[%clk 0:00:03]}  Bf7 {[%clk 0:00:06]} 55. Kf6 {[%clk 0:00:02]}  Bc4 {[%clk 0:00:06]} 56. Ne6+ {[%clk 0:00:02]} 1-0


[Site "https://www.chess.com"]

[Event "Titled Tuesday Blitz January 25 2022"]
[White "Garriga Cazorla, Pere"]
[Black "Aaditya Dhingra"]
[WhiteFideId "32011601"]
[BlackFideId "25678191"]
[WhiteElo "2458"]
[BlackElo "1789"]
[Result "1-0"]
[Round "09"]
[TimeControl "180+1"]
[Date "2022.01.26"]
[WhiteClock "0:00:55"]
[BlackClock "0:00:02"]

1. Nf3 {[%clk 0:03:00]}  Nf6 {[%clk 0:02:58]} 2. c4 {[%clk 0:03:00]}  e6 {[%clk 0:02:57]} 3. Nc3 {[%clk 0:02:59]}  d5 {[%clk 0:02:57]} 4. d4 {[%clk 0:02:53]}  Be7 {[%clk 0:02:56]} 5. g3 {[%clk 0:02:52]}  O-O {[%clk 0:02:53]} 6. Bg2 {[%clk 0:02:52]}  Nbd7 {[%clk 0:02:47]} 7. O-O {[%clk 0:02:49]}  c6 {[%clk 0:02:37]} 8. Qd3 {[%clk 0:02:45]}  b6 {[%clk 0:02:30]} 9. e4 {[%clk 0:02:40]}  Ba6 {[%clk 0:02:27]} 10. b3 {[%clk 0:02:40]}  dxc4 {[%clk 0:01:44]} 11. bxc4 {[%clk 0:02:41]}  b5 {[%clk 0:01:41]} 12. Rd1 {[%clk 0:02:25]}  bxc4 {[%clk 0:01:32]} 13. Qe2 {[%clk 0:02:24]}  Qa5 {[%clk 0:01:29]} 14. Bd2 {[%clk 0:02:22]}  Bb4 {[%clk 0:01:26]} 15. Qe1 {[%clk 0:02:10]}  Qh5 {[%clk 0:01:18]} 16. h3 {[%clk 0:02:08]}  h6 {[%clk 0:01:03]} 17. a3 {[%clk 0:02:02]}  Ba5 {[%clk 0:01:00]} 18. g4 {[%clk 0:01:53]}  Qg6 {[%clk 0:00:59]} 19. e5 {[%clk 0:01:53]}  Bxc3 {[%clk 0:00:56]} 20. Bxc3 {[%clk 0:01:50]}  Nd5 {[%clk 0:00:56]} 21. Rac1 {[%clk 0:01:50]}  Nf4 {[%clk 0:00:51]} 22. Nh4 {[%clk 0:01:48]}  Qg5 {[%clk 0:00:49]} 23. Bd2 {[%clk 0:01:48]}  Nxg2 {[%clk 0:00:35]} 24. Nxg2 {[%clk 0:01:43]}  Qe7 {[%clk 0:00:33]} 25. h4 {[%clk 0:01:31]}  c5 {[%clk 0:00:28]} 26. g5 {[%clk 0:01:27]}  h5 {[%clk 0:00:22]} 27. Nf4 {[%clk 0:01:21]}  g6 {[%clk 0:00:21]} 28. Bc3 {[%clk 0:01:15]}  cxd4 {[%clk 0:00:19]} 29. Rxd4 {[%clk 0:01:13]}  Rfd8 {[%clk 0:00:16]} 30. Bb4 {[%clk 0:01:12]}  Qe8 {[%clk 0:00:15]} 31. Qe4 {[%clk 0:01:09]}  Nb6 {[%clk 0:00:15]} 32. Rd6 {[%clk 0:01:10]}  Rxd6 {[%clk 0:00:14]} 33. exd6 {[%clk 0:01:09]}  e5 {[%clk 0:00:13]} 34. Re1 {[%clk 0:01:06]}  Nd7 {[%clk 0:00:08]} 35. Nd5 {[%clk 0:01:02]}  Rc8 {[%clk 0:00:07]} 36. Ne7+ {[%clk 0:01:01]}  Kh7 {[%clk 0:00:06]} 37. f4 {[%clk 0:01:01]}  Rb8 {[%clk 0:00:04]} 38. f5 {[%clk 0:00:59]}  Bb7 {[%clk 0:00:03]} 39. Qxc4 {[%clk 0:00:58]}  Nb6 {[%clk 0:00:02]} 40. fxg6+ {[%clk 0:00:57]}  fxg6 {[%clk 0:00:02]} 41. Qe6 {[%clk 0:00:58]}  Bc8 {[%clk 0:00:01]} 42. Qxe5 {[%clk 0:00:55]}  Bd7 {[%clk 0:00:02]} 43. Rf1 {[%clk 0:00:55]}  Qf8 {[%clk 0:00:02]} 44. Rxf8 {[%clk 0:00:55]}  Rxf8 {[%clk 0:00:02]} 45. Bc3 {[%clk 0:00:55]} 1-0


[Site "https://www.chess.com"]

[Event "Titled Tuesday Blitz January 25 2022"]
[White "Gnechko, Ruslan"]
[Black "Golubka, Petro"]
[WhiteFideId "14135868"]
[BlackFideId "14114224"]
[WhiteElo "2289"]
[BlackElo "2392"]
[Result "0-1"]
[Round "09"]
[TimeControl "180+1"]
[Date "2022.01.26"]
[WhiteClock "0:02:03"]
[BlackClock "0:02:13"]

1. e4 {[%clk 0:03:00]}  c5 {[%clk 0:02:46]} 2. Nf3 {[%clk 0:03:00]}  e6 {[%clk 0:02:44]} 3. d4 {[%clk 0:02:59]}  cxd4 {[%clk 0:02:45]} 4. Nxd4 {[%clk 0:03:00]}  a6 {[%clk 0:02:46]} 5. c4 {[%clk 0:02:58]}  b6 {[%clk 0:02:45]} 6. Nc3 {[%clk 0:02:58]}  Bb7 {[%clk 0:02:46]} 7. a3 {[%clk 0:02:58]}  Nc6 {[%clk 0:02:44]} 8. Nxc6 {[%clk 0:02:58]}  Bxc6 {[%clk 0:02:45]} 9. Bd3 {[%clk 0:02:58]}  Bc5 {[%clk 0:02:42]} 10. O-O {[%clk 0:02:57]}  h5 {[%clk 0:02:42]} 11. Qe2 {[%clk 0:02:49]}  Nf6 {[%clk 0:02:36]} 12. Be3 {[%clk 0:02:48]}  Qe7 {[%clk 0:02:28]} 13. b4 {[%clk 0:02:47]}  Bxe3 {[%clk 0:02:27]} 14. Qxe3 {[%clk 0:02:47]}  Ng4 {[%clk 0:02:24]} 15. Qxb6 {[%clk 0:02:44]}  Qd6 {[%clk 0:02:22]} 16. e5 {[%clk 0:02:03]}  Qxe5 {[%clk 0:02:13]} 0-1


[Site "https://www.chess.com"]

[Event "Titled Tuesday Blitz January 25 2022"]
[White "Golizadeh, Asghar"]
[Black "Seletsky, Grigory"]
[WhiteFideId "12505269"]
[BlackFideId "14112191"]
[WhiteElo "2403"]
[BlackElo "2492"]
[Result "1-0"]
[Round "09"]
[TimeControl "180+1"]
[Date "2022.01.26"]
[WhiteClock "0:01:08"]
[BlackClock "0:00:23"]

1. e4 {[%clk 0:03:00]}  e6 {[%clk 0:02:59]} 2. d4 {[%clk 0:03:00]}  d5 {[%clk 0:02:58]} 3. Nc3 {[%clk 0:03:01]}  Nc6 {[%clk 0:02:58]} 4. Nf3 {[%clk 0:02:58]}  Nf6 {[%clk 0:02:57]} 5. e5 {[%clk 0:02:57]}  Ne4 {[%clk 0:02:56]} 6. Bd3 {[%clk 0:02:58]}  Bb4 {[%clk 0:02:54]} 7. Bd2 {[%clk 0:02:53]}  Nxd2 {[%clk 0:02:52]} 8. Qxd2 {[%clk 0:02:54]}  b6 {[%clk 0:02:50]} 9. a3 {[%clk 0:02:51]}  Be7 {[%clk 0:02:49]} 10. O-O {[%clk 0:02:34]}  Bb7 {[%clk 0:02:48]} 11. b4 {[%clk 0:02:23]}  a5 {[%clk 0:02:43]} 12. b5 {[%clk 0:02:23]}  Nb8 {[%clk 0:02:33]} 13. Ne2 {[%clk 0:02:20]}  O-O {[%clk 0:02:30]} 14. Ng3 {[%clk 0:02:18]}  c5 {[%clk 0:02:26]} 15. c3 {[%clk 0:02:12]}  Nd7 {[%clk 0:02:22]} 16. Nh5 {[%clk 0:02:11]}  f5 {[%clk 0:02:10]} 17. exf6 {[%clk 0:02:07]}  Nxf6 {[%clk 0:02:09]} 18. Nxf6+ {[%clk 0:02:07]}  Bxf6 {[%clk 0:02:07]} 19. Rfe1 {[%clk 0:02:08]}  Re8 {[%clk 0:02:05]} 20. Ne5 {[%clk 0:01:46]}  Rc8 {[%clk 0:01:57]} 21. Rad1 {[%clk 0:01:35]}  cxd4 {[%clk 0:01:55]} 22. cxd4 {[%clk 0:01:35]}  Qd6 {[%clk 0:01:46]} 23. Bb1 {[%clk 0:01:27]}  Qxa3 {[%clk 0:01:38]} 24. Nd7 {[%clk 0:01:18]}  Qd6 {[%clk 0:01:07]} 25. Nxf6+ {[%clk 0:01:15]}  gxf6 {[%clk 0:01:06]} 26. Qh6 {[%clk 0:01:16]}  Qd7 {[%clk 0:00:31]} 27. Rd3 {[%clk 0:01:11]}  Re7 {[%clk 0:00:25]} 28. Rg3+ {[%clk 0:01:10]}  Rg7 {[%clk 0:00:24]} 29. Qxh7+ {[%clk 0:01:09]}  Kf8 {[%clk 0:00:23]} 30. Qh8+ {[%clk 0:01:08]} 1-0


[Site "https://www.chess.com"]

[Event "Titled Tuesday Blitz January 25 2022"]
[White "Guliev, Logman"]
[Black "Goryachkina, Aleksandra"]
[WhiteFideId "13400061"]
[BlackFideId "4147103"]
[WhiteElo "2128"]
[BlackElo "2426"]
[Result "0-1"]
[Round "09"]
[TimeControl "180+1"]
[Date "2022.01.26"]
[WhiteClock "0:00:02"]
[BlackClock "0:00:14"]

1. e4 {[%clk 0:03:00]}  e6 {[%clk 0:02:59]} 2. d4 {[%clk 0:03:00]}  d5 {[%clk 0:03:00]} 3. Nd2 {[%clk 0:03:00]}  c5 {[%clk 0:02:59]} 4. exd5 {[%clk 0:02:59]}  Qxd5 {[%clk 0:02:59]} 5. Ngf3 {[%clk 0:02:59]}  cxd4 {[%clk 0:03:00]} 6. Bc4 {[%clk 0:02:59]}  Qd7 {[%clk 0:02:59]} 7. O-O {[%clk 0:02:58]}  Nc6 {[%clk 0:02:58]} 8. Ne4 {[%clk 0:02:47]}  a6 {[%clk 0:02:48]} 9. Qe2 {[%clk 0:02:45]}  Be7 {[%clk 0:02:47]} 10. Rd1 {[%clk 0:02:44]}  Nf6 {[%clk 0:02:47]} 11. Bg5 {[%clk 0:02:36]}  b5 {[%clk 0:02:29]} 12. Bb3 {[%clk 0:02:25]}  Bb7 {[%clk 0:02:26]} 13. Bxf6 {[%clk 0:02:22]}  gxf6 {[%clk 0:02:25]} 14. c3 {[%clk 0:02:22]}  f5 {[%clk 0:02:13]} 15. Nxd4 {[%clk 0:02:15]}  Nxd4 {[%clk 0:01:58]} 16. Rxd4 {[%clk 0:02:13]}  Qc7 {[%clk 0:01:58]} 17. Ng3 {[%clk 0:02:00]}  Rg8 {[%clk 0:01:55]} 18. Rad1 {[%clk 0:01:42]}  Qc6 {[%clk 0:01:27]} 19. Bd5 {[%clk 0:01:23]}  exd5 {[%clk 0:01:17]} 20. Nxf5 {[%clk 0:01:21]}  Qe6 {[%clk 0:00:56]} 21. Qf3 {[%clk 0:01:10]}  O-O-O {[%clk 0:00:45]} 22. Kf1 {[%clk 0:01:10]}  Rde8 {[%clk 0:00:40]} 23. Re1 {[%clk 0:01:04]}  Qd7 {[%clk 0:00:40]} 24. Qh3 {[%clk 0:00:56]}  Bc5 {[%clk 0:00:35]} 25. Rdd1 {[%clk 0:00:29]}  Kb8 {[%clk 0:00:34]} 26. b4 {[%clk 0:00:26]}  Bb6 {[%clk 0:00:33]} 27. Qxh7 {[%clk 0:00:14]}  d4 {[%clk 0:00:29]} 28. Ng3 {[%clk 0:00:12]}  Rxe1+ {[%clk 0:00:24]} 29. Rxe1 {[%clk 0:00:10]}  Rd8 {[%clk 0:00:22]} 30. Rd1 {[%clk 0:00:10]}  d3 {[%clk 0:00:22]} 31. Qf5 {[%clk 0:00:09]}  Qc6 {[%clk 0:00:17]} 32. f3 {[%clk 0:00:07]}  Qxc3 {[%clk 0:00:17]} 33. Qf4+ {[%clk 0:00:04]}  Ka7 {[%clk 0:00:17]} 34. Ne4 {[%clk 0:00:02]}  Qc2 {[%clk 0:00:14]} 0-1


[Site "https://www.chess.com"]